fUSD/lending_fUSD_20251229
["ID","MTS","AMOUNT","RATE_DAILY","PERIOD"]
[399999937,1767004241260,-374.4790482,0.00014859,2]
[399999938,1767004241273,-1715.73812476,0.00014954,2]
[399999939,1767004241283,-1852.42,0.00014988,2]
[399999940,1767004241292,-2591.62,0.00014988,2]
[399999941,1767004241302,-15446.20726218,0.00015,2]
[399999942,1767004241311,-1155.89304185,0.00015,2]
[399999943,1767004241320,-10682.19880959,0.00015,2]
[399999944,1767004241329,-837.07,0.00015045,2]
[399999945,1767004241339,-323.88,0.00015096,2]
[399999946,1767004241348,-273.79669647,0.0001511,2]
[399999947,1767004241357,-500.0,0.00015121,2]
[399999948,1767004241367,-403.31243356,0.00015121,2]
[399999949,1767004241376,-1000.0,0.00015121,2]
[399999950,1767004241386,-177.11753301,0.00015121,2]
[399999951,1767004241395,-1000.0,0.00015121,2]
[399999952,1767004241404,-342.8792536,0.00015121,2]
[399999953,1767004241414,-323.28,0.00015179,2]
[399999954,1767004241424,-1847.61449217,0.00015256,2]
[399999955,1767004241433,-837.07,0.00015319,2]
[399999956,1767004241442,-1715.73812476,0.00015344,2]
[399999957,1767004241452,-896.88341498,0.00015388,2]
[399999958,1767004241462,-330.42696608,0.0001541,2]
[399999959,1767004241471,-500.0,0.0001541,2]
[399999960,1767004241481,-250.0,0.0001541,2]
[399999961,1767004241490,-500.0,0.0001541,2]
[399999962,1767004241499,-261.33546544,0.0001541,2]
[399999963,1767004241509,-500.0,0.0001541,2]
[399999964,1767004241518,-500.0,0.0001541,2]
[399999965,1767004241527,-500.0,0.0001541,2]
[399999966,1767004241540,-553.64373807,0.0001541,2]
[399999967,1767004241549,-500.0,0.0001541,2]
[399999968,1767004241559,-500.0,0.0001541,2]
[399999969,1767004241568,-500.0,0.0001541,2]
[399999970,1767004241578,-500.0,0.0001541,2]
[399999971,1767004241588,-500.0,0.0001541,2]
[399999972,1767004241597,-500.0,0.0001541,2]
[399999973,1767004241607,-500.0,0.0001541,2]
[399999974,1767004241616,-500.0,0.0001541,2]
[399999975,1767004241626,-500.0,0.0001541,2]
[399999976,1767004241636,-500.0,0.0001541,2]
[399999977,1767004241645,-462.02607038,0.0001541,2]
[399999978,1767004241654,-1000.0,0.0001541,2]
[399999979,1767004241664,-1000.0,0.0001541,2]
[399999980,1767004241673,-1000.0,0.0001541,2]
[399999981,1767004241682,-1000.0,0.0001541,2]
[399999982,1767004241693,-500.0,0.0001541,2]
[399999983,1767004241702,-620.0,0.0001541,2]
[399999984,1767004241711,-500.0,0.0001541,2]
[399999985,1767004241720,-500.0,0.0001541,2]
[399999986,1767004241730,-500.0,0.0001541,2]
[399999987,1767004241739,-200.0,0.0001541,2]
[399999988,1767004241748,-514.51547206,0.0001541,2]
[399999989,1767004241757,-207.4,0.0001541,2]
[399999990,1767004241767,-215.0738,0.0001541,2]
[399999991,1767004241776,-353.23885665,0.0001541,2]
[399999992,1767004241785,-2669.33414357,0.00015556,2]
[399999993,1767004241794,-151.0,0.00015565,2]
[399999994,1767004241804,-151.0,0.00015565,2]
[399999995,1767004241813,-837.07,0.00015593,2]
[399999996,1767004241822,-433.0,0.00015627,2]
[399999997,1767004241832,-1847.61449217,0.00015667,2]
[399999998,1767004241841,-1500.0,0.00015668,2]
[399999999,1767004241850,-1500.0,0.00015668,2]
[400000000,1767004241860,-1715.73812476,0.00015733,2]
[400000001,1767004241870,-837.07,0.00015867,2]
[400000002,1767004241880,-574.12855637,0.00015958,2]
[400000003,1767004241889,-587.0,0.00015985,2]
[400000004,1767004241899,-1847.61449217,0.00016078,2]
[400000005,1767004241909,-565.0,0.0001611,2]
[400000006,1767004241918,-1715.73812476,0.00016122,2]
[400000007,1767004241928,-3456.0,0.00016122,2]
[400000008,1767004241937,-837.07,0.00016141,2]
[400000009,1767004241947,-565.0,0.00016153,2]
[400000010,1767004241956,-565.0,0.00016189,2]
[400000011,1767004241966,-1000.0,0.00016216,2]
[400000012,1767004241975,-2000.0,0.00016216,2]
[400000013,1767004241984,-565.0,0.00016256,2]
[400000014,1767004241994,-565.0,0.00016292,2]
[400000015,1767004242003,-565.0,0.00016314,2]
[400000016,1767004242012,-565.0,0.00016379,2]
[400000017,1767004242022,-565.0,0.00016407,2]
[400000018,1767004242031,-837.13,0.00016415,2]
[400000019,1767004242040,-500.0,0.00016438,2]
[400000020,1767004242050,-500.0,0.00016438,2]
[400000021,1767004242059,-500.0,0.00016438,2]
[400000022,1767004242069,-500.0,0.00016438,2]
[400000023,1767004242079,-500.0,0.00016438,2]
[400000024,1767004242088,-500.0,0.00016438,2]
[400000025,1767004242098,-500.0,0.00016438,2]
[400000026,1767004242107,-500.0,0.00016438,2]
[400000027,1767004242117,-500.0,0.00016438,2]
[400000028,1767004242126,-256.31573101,0.00016438,2]
[400000029,1767004242135,-500.0,0.00016438,2]
[400000030,1767004242144,-500.0,0.00016438,2]
[400000031,1767004242154,-500.0,0.00016438,2]
[400000032,1767004242163,-500.0,0.00016438,2]
[400000033,1767004242172,-500.0,0.00016438,2]
[400000034,1767004242182,-500.0,0.00016438,2]
[400000035,1767004242191,-500.0,0.00016438,2]
[400000036,1767004242201,-5158.36,0.00016438,2]
[400000037,1767004242211,-1847.61449217,0.00016489,2]
[400000038,1767004242220,-595.37131296,0.00016506,2]
[400000039,1767004242230,-1715.73812476,0.00016511,2]
[400000040,1767004242239,-565.0,0.00016529,2]
[400000041,1767004242248,-565.0,0.00016589,2]
[400000042,1767004242257,-565.0,0.00016612,2]
[400000043,1767004242266,-565.0,0.0001665,2]
[400000044,1767004242275,-1760.95480935,0.0001666,2]
[400000045,1767004242285,-150.0,0.00016672,2]
[400000046,1767004242294,-417.0,0.00016672,2]
[400000047,1767004242303,-150.0,0.00016672,2]
[400000048,1767004242312,-193.94165854,0.00016699,2]
[400000049,1767004242321,-417.0,0.00016699,2]
[400000050,1767004242330,-150.0,0.00016699,2]
[400000051,1767004242339,-417.0,0.00016727,2]
[400000052,1767004242348,-200.0,0.00016727,2]
[400000053,1767004242358,-417.0,0.00016754,2]
[400000054,1767004242367,-565.0,0.00016758,2]
[400000055,1767004242376,-2500.0,0.00016764,2]
[400000056,1767004242386,-642.94,0.00016779,2]
[400000057,1767004242395,-417.0,0.00016782,2]
[400000058,1767004242405,-565.0,0.00016796,2]
[400000059,1767004242415,-417.0,0.00016809,2]
[400000060,1767004242424,-565.0,0.00016834,2]
[400000061,1767004242434,-417.0,0.00016836,2]
[400000062,1767004242444,-417.0,0.00016864,2]
[400000063,1767004242454,-417.0,0.00016891,2]
[400000064,1767004242463,-1083.70862998,0.000169,2]
[400000065,1767004242472,-1715.73812476,0.000169,2]
[400000066,1767004242482,-1551.92743552,0.000169,2]
[400000067,1767004242491,-284.70181435,0.000169,2]
[400000068,1767004242500,-202.5810054,0.000169,2]
[400000069,1767004242509,-1847.61449217,0.000169,2]
[400000070,1767004242519,-201.36386948,0.000169,2]
[400000071,1767004242528,-506.74550235,0.000169,2]
[400000072,1767004242541,-417.0,0.00016919,2]
[400000073,1767004242551,-417.0,0.00016946,2]
[400000074,1767004242560,-417.0,0.00016973,2]
[400000075,1767004242569,-565.0,0.00016985,2]
[400000076,1767004242579,-320.0000001,0.00016986,2]
[400000077,1767004242589,-1109.3978619,0.00016992,2]
[400000078,1767004242598,-36874.1859017,0.00016992,2]
[400000079,1767004242608,-300.0,0.00016999,2]
[400000080,1767004242617,-300.0,0.00016999,2]
[400000081,1767004242626,-85318.64951353,0.00017,2]
[400000082,1767004242648,-79778.39253198,0.00017,2]
[400000083,1767004242659,-3608.27472446,0.00017,2]
[400000084,1767004242670,-1275.68569252,0.00017,2]
[400000085,1767004242686,-883.15138334,0.00017,2]
[400000086,1767004242697,-13866.1066969,0.00017,2]
[400000094,1767004243775,-3050.0,0.00017,2]
[400000095,1767004243786,-40377.71696899,0.00017,2]
[400000096,1767004243797,-3610.40386913,0.00017,2]
[400000097,1767004243806,-5329.50658887,0.00017,2]
[400000098,1767004243817,-6883.494434,0.00017,2]
[400000099,1767004244474,-331.96902834,0.000169,2]
[400000100,1767004244484,-1464.43705563,0.00017,2]
[400000101,1767004244530,-533.81914476,0.00017,2]
[400000102,1767004244545,-1844.40697459,0.00017,2]
[400000103,1767004244556,-1420.57173644,0.00017,2]
[400000104,1767004244567,-1134.51786749,0.00017,2]
[400000106,1767004244608,-721.8465621,0.00017,2]
[400000110,1767004246345,-5561.99188177,0.00017,2]
[400000111,1767004246357,-993.0,0.00017,2]
[400000112,1767004246367,-19014.09979809,0.00017,2]
[400000113,1767004246400,-1269.70890553,0.00017,2]
[400000114,1767004246457,-2332.25914526,0.00017,2]
[400000115,1767004246469,-753.01482349,0.00017,2]
[400000116,1767004246480,-1399.79386997,0.00017,2]
[400000117,1767004246514,-4689.90239733,0.00017,2]
[400000118,1767004246525,-651.4799978,0.00017,2]
[400000119,1767004246538,-9300.4639212,0.00017,2]
[400000155,1767004271849,238.9201,0.00013202,2]
[400000156,1767004323447,1199.8315,0.00013201,2]
[400000157,1767004401413,150.0,0.00027397,120]
[400000173,1767004951875,-1389.151,0.00012936,2]
[400000174,1767004951895,-1200.0,0.00013099,2]
[400000175,1767004951916,-300.0,0.00013099,2]
[400000176,1767004951936,-258.0,0.00013099,2]
[400000177,1767004951968,-150.0,0.00013099,2]
[400000178,1767004951992,-5495.4546,0.00013099,2]
[400000179,1767004952013,-236.1517,0.00013099,2]
[400000180,1767004952036,-229.62700487,0.000131,2]
[400000181,1767004952058,-2575.01702901,0.000131,2]
[400000182,1767004952081,-784.00698353,0.000131,2]
[400000183,1767004952103,-380.28936169,0.000131,2]
[400000184,1767004952124,-4103.1399,0.000131,2]
[400000185,1767004952145,-8996.5886,0.000131,2]
[400000186,1767004952170,-815.0259,0.000131,2]
[400000187,1767004952191,-387.3585,0.00013102,2]
[400000188,1767004952212,-12700.1894209,0.0001319,2]
[400000189,1767005202207,8610.51,0.00012831,2]
[400000194,1767005431314,-968100.18723826,0.00012999,2]
[400000195,1767005431326,-31899.81276174,0.00012999,2]
[400000196,1767005431336,-259.0,0.00013098,2]
[400000197,1767005431345,-206.1780204,0.00013098,2]
[400000198,1767005431355,-29016.1173,0.00013099,2]
[400000199,1767005431365,-3397.82824623,0.000131,2]
[400000200,1767005431374,-565.15474554,0.000131,2]
[400000201,1767005431383,-4650.1121114,0.000131,2]
[400000202,1767005431393,-150.0,0.00013188,2]
[400000203,1767005431401,-8807.5426701,0.00013189,2]
[400000204,1767005431413,-33025.81717552,0.00013189,2]
[400000205,1767005431423,-222.2,0.00013192,2]
[400000206,1767005431433,-500.0,0.00013192,2]
[400000207,1767005431442,-894.26,0.00013199,2]
[400000208,1767005431452,-219.15108404,0.00013199,2]
[400000209,1767005431462,-281.97795093,0.00013199,2]
[400000210,1767005431471,-500.0,0.00013199,2]
[400000211,1767005431488,-248.94993914,0.00013199,2]
[400000212,1767005431497,-200.0,0.00013199,2]
[400000213,1767005431507,-500.0,0.00013199,2]
[400000214,1767005431517,-500.0,0.00013199,2]
[400000215,1767005431526,-500.0,0.00013199,2]
[400000217,1767005431535,-500.0,0.00013199,2]
[400000218,1767005431545,-500.0,0.00013199,2]
[400000219,1767005431554,-500.0,0.00013199,2]
[400000220,1767005431564,-500.0,0.00013199,2]
[400000221,1767005431574,-500.0,0.00013199,2]
[400000222,1767005431584,-500.0,0.00013199,2]
[400000223,1767005431593,-500.0,0.00013199,2]
[400000224,1767005431602,-500.0,0.00013199,2]
[400000225,1767005431611,-500.0,0.00013199,2]
[400000226,1767005431621,-500.0,0.00013199,2]
[400000227,1767005431630,-500.0,0.00013199,2]
[400000228,1767005431639,-500.0,0.00013199,2]
[400000229,1767005431648,-500.0,0.00013199,2]
[400000230,1767005431657,-500.0,0.00013199,2]
[400000231,1767005431667,-535.40950983,0.00013199,2]
[400000232,1767005431676,-500.0,0.00013199,2]
[400000233,1767005431685,-500.0,0.00013199,2]
[400000234,1767005431694,-500.0,0.00013199,2]
[400000235,1767005431703,-500.0,0.00013199,2]
[400000236,1767005431712,-500.0,0.00013199,2]
[400000237,1767005431722,-500.0,0.00013199,2]
[400000238,1767005431732,-500.0,0.00013199,2]
[400000239,1767005431741,-500.0,0.00013199,2]
[400000240,1767005431751,-500.0,0.00013199,2]
[400000241,1767005431760,-500.0,0.00013199,2]
[400000242,1767005431769,-500.0,0.00013199,2]
[400000243,1767005431779,-500.0,0.00013199,2]
[400000244,1767005431788,-500.0,0.00013199,2]
[400000245,1767005431797,-500.0,0.00013199,2]
[400000246,1767005431806,-500.0,0.00013199,2]
[400000247,1767005431815,-500.0,0.00013199,2]
[400000248,1767005431825,-500.0,0.00013199,2]
[400000249,1767005431834,-500.0,0.00013199,2]
[400000250,1767005431844,-500.0,0.00013199,2]
[400000251,1767005431856,-500.0,0.00013199,2]
[400000252,1767005431872,-500.0,0.00013199,2]
[400000253,1767005431883,-500.0,0.00013199,2]
[400000254,1767005431894,-500.0,0.00013199,2]
[400000255,1767005431904,-500.0,0.00013199,2]
[400000256,1767005431913,-500.0,0.00013199,2]
[400000257,1767005431923,-250.0,0.00013199,2]
[400000258,1767005431933,-500.0,0.000132,2]
[400000259,1767005431942,-1000.0,0.00013201,2]
[400000260,1767005431952,-894.26,0.00013473,2]
[400000261,1767005431961,-500.0,0.00013474,2]
[400000262,1767005431971,-3397.82824614,0.00013522,2]
[400000263,1767005431980,-4650.11211136,0.00013522,2]
[400000264,1767005431989,-500.0,0.00013698,2]
[400000265,1767005431999,-507.63532052,0.00013698,2]
[400000266,1767005432008,-500.0,0.00013698,2]
[400000267,1767005432018,-500.0,0.00013698,2]
[400000268,1767005432027,-500.0,0.00013698,2]
[400000269,1767005432036,-500.0,0.00013698,2]
[400000270,1767005432046,-500.0,0.00013698,2]
[400000271,1767005432055,-500.0,0.00013698,2]
[400000272,1767005432063,-500.0,0.00013698,2]
[400000273,1767005432073,-500.0,0.00013698,2]
[400000274,1767005432083,-535.35055637,0.00013698,2]
[400000275,1767005432093,-500.0,0.00013698,2]
[400000276,1767005432102,-500.0,0.00013698,2]
[400000277,1767005432112,-354.14576544,0.00013698,2]
[400000278,1767005432121,-500.0,0.00013698,2]
[400000279,1767005432130,-500.0,0.00013698,2]
[400000280,1767005432140,-500.0,0.00013698,2]
[400000281,1767005432149,-515.90428351,0.00013698,2]
[400000282,1767005432159,-500.0,0.00013699,2]
[400000283,1767005432168,-292.7342488,0.00013699,2]
[400000284,1767005432177,-599.90625443,0.0001374,2]
[400000285,1767005432187,-894.26,0.00013747,2]
[400000286,1767005432197,-500.0,0.00013748,2]
[400000287,1767005432206,-1212.44,0.0001384,2]
[400000288,1767005432216,-16505.46,0.00013889,2]
[400000289,1767005432228,-14494.87421709,0.00013941,2]
[400000290,1767005432242,-66010.72821693,0.00013941,2]
[400000291,1767005432258,-999.0,0.00013941,2]
[400000292,1767005432269,-450.72894432,0.00013941,2]
[400000293,1767005432292,-1059.11,0.00013941,2]
[400000294,1767005432304,-1055.51,0.00013941,2]
[400000295,1767005432344,-908.2957632,0.00013941,2]
[400000296,1767005432359,-464.68010598,0.00013944,2]
[400000297,1767005432380,-2933.14814016,0.00013944,2]
[400000298,1767005432390,-2868.92986691,0.00013944,2]
[400000302,1767005437422,-458.34897376,0.00013944,2]
[400000303,1767005437476,-597.61849702,0.00013944,2]
[400000304,1767005437487,-725.21477367,0.00013944,2]
[400000305,1767005437496,-894.26,0.00014021,2]
[400000306,1767005437505,-715.60851547,0.00014295,2]
[400000307,1767005437534,-178.65148453,0.00014295,2]
[400000308,1767005437543,-255.0,0.00014296,2]
[400000309,1767005437553,-300.0,0.00014299,2]
[400000310,1767005437562,-300.0,0.00014299,2]
[400000311,1767005437574,-302.25080857,0.00014299,2]
[400000312,1767005437584,-3397.82824614,0.00014367,2]
[400000313,1767005437595,-4650.11211136,0.00014367,2]
[400000314,1767005437604,-195.0,0.00014408,2]
[400000315,1767005437614,-250.0,0.00014408,2]
[400000316,1767005437624,-167.88,0.00014473,2]
[400000317,1767005437634,-894.26,0.00014569,2]
[400000318,1767005437643,-500.0,0.00014573,2]
[400000319,1767005437652,-172.80596156,0.00014573,2]
[400000320,1767005437661,-500.0,0.00014573,2]
[400000321,1767005437670,-500.0,0.00014573,2]
[400000322,1767005437679,-500.0,0.00014573,2]
[400000323,1767005437688,-466.57897047,0.00014573,2]
[400000324,1767005437698,-500.0,0.00014573,2]
[400000325,1767005437708,-500.0,0.00014573,2]
[400000326,1767005437718,-500.38383146,0.00014573,2]
[400000327,1767005437728,-500.0,0.00014573,2]
[400000328,1767005437738,-505.52174355,0.00014573,2]
[400000330,1767005437747,-160.20652096,0.00014573,2]
[400000332,1767005437756,-163.91470139,0.00014573,2]
[400000333,1767005437766,-500.0,0.00014573,2]
[400000334,1767005437778,-501.47157547,0.00014573,2]
[400000335,1767005437788,-500.0,0.00014573,2]
[400000336,1767005437797,-500.0,0.00014573,2]
[400000337,1767005437807,-501.08830935,0.00014573,2]
[400000338,1767005437817,-500.0,0.00014573,2]
[400000339,1767005437827,-500.73448024,0.00014573,2]
[400000340,1767005437836,-503.89734133,0.00014573,2]
[400000341,1767005437846,-3397.82824614,0.00014789,2]
[400000342,1767005437859,-4650.11211136,0.00014789,2]
[400000343,1767005437868,-894.26,0.00014843,2]
[400000344,1767005437879,-822.42099516,0.0001497,2]
[400000345,1767005437890,-151.0,0.00014981,2]
[400000346,1767005437900,-151.0,0.00014981,2]
[400000347,1767005437910,-151.0,0.00014981,2]
[400000348,1767005437919,-151.0,0.00014981,2]
[400000349,1767005437931,-151.0,0.00015003,2]
[400000350,1767005437942,-151.0,0.00015003,2]
[400000351,1767005437951,-151.0,0.00015017,2]
[400000352,1767005437961,-151.0,0.00015017,2]
[400000353,1767005437974,-894.26,0.00015117,2]
[400000354,1767005437984,-403.31243356,0.00015121,2]
[400000355,1767005437994,-177.11753301,0.00015121,2]
[400000356,1767005438004,-500.0,0.00015121,2]
[400000357,1767005438013,-1000.0,0.00015121,2]
[400000358,1767005438022,-1000.0,0.00015121,2]
[400000359,1767005438031,-342.8792536,0.00015121,2]
[400000360,1767005438042,-1000.0,0.00015121,2]
[400000361,1767005438051,-348.79,0.0001519,2]
[400000362,1767005438060,-3397.82824614,0.00015211,2]
[400000363,1767005438070,-4650.11211136,0.00015211,2]
[400000364,1767005438079,-561.62632665,0.00015272,2]
[400000365,1767005438089,-894.26,0.00015391,2]
[400000366,1767005438098,-200.0,0.0001541,2]
[400000367,1767005438108,-207.4,0.0001541,2]
[400000368,1767005438118,-215.0738,0.0001541,2]
[400000369,1767005438127,-353.23885665,0.0001541,2]
[400000370,1767005438137,-500.0,0.0001541,2]
[400000371,1767005438146,-500.0,0.0001541,2]
[400000372,1767005438155,-500.0,0.0001541,2]
[400000373,1767005438167,-330.42696608,0.0001541,2]
[400000374,1767005438176,-500.0,0.0001541,2]
[400000375,1767005438186,-500.0,0.0001541,2]
[400000376,1767005438196,-553.64373807,0.0001541,2]
[400000377,1767005438205,-620.0,0.0001541,2]
[400000378,1767005438215,-500.0,0.0001541,2]
[400000379,1767005438224,-500.0,0.0001541,2]
[400000380,1767005438233,-500.0,0.0001541,2]
[400000381,1767005438242,-500.0,0.0001541,2]
[400000382,1767005438252,-500.0,0.0001541,2]
[400000383,1767005438261,-500.0,0.0001541,2]
[400000384,1767005438270,-500.0,0.0001541,2]
[400000385,1767005438279,-500.0,0.0001541,2]
[400000386,1767005438289,-500.0,0.0001541,2]
[400000387,1767005438298,-500.0,0.0001541,2]
[400000388,1767005438307,-462.02607038,0.0001541,2]
[400000389,1767005438316,-1000.0,0.0001541,2]
[400000390,1767005438326,-1000.0,0.0001541,2]
[400000391,1767005438335,-500.0,0.0001541,2]
[400000392,1767005438344,-1000.0,0.0001541,2]
[400000393,1767005438353,-500.0,0.0001541,2]
[400000394,1767005438365,-250.0,0.0001541,2]
[400000395,1767005438374,-1000.0,0.0001541,2]
[400000396,1767005438383,-500.0,0.0001541,2]
[400000397,1767005438392,-261.33546544,0.0001541,2]
[400000398,1767005438403,-500.0,0.0001541,2]
[400000399,1767005438412,-514.51547206,0.0001541,2]
[400000400,1767005438421,-211.91,0.00015412,2]
[400000401,1767005438431,-1331.76181678,0.00015465,2]
[400000402,1767005438440,-345.0,0.00015496,2]
[400000403,1767005438450,-760.72258119,0.00015607,2]
[400000404,1767005438459,-3397.82824614,0.00015633,2]
[400000405,1767005438468,-894.26,0.00015665,2]
[400000406,1767005438478,-1500.0,0.00015668,2]
[400000407,1767005438487,-1000.5,0.00015668,2]
[400000408,1767005438497,-1500.0,0.00015668,2]
[400000409,1767005438506,-167.88,0.00015679,2]
[400000410,1767005438515,-894.26,0.00015939,2]
[400000411,1767005438525,-574.12855637,0.00015958,2]
[400000412,1767005438535,-565.0,0.00016026,2]
[400000413,1767005438543,-565.0,0.00016046,2]
[400000414,1767005438553,-3397.82824614,0.00016056,2]
[400000415,1767005438562,-565.0,0.00016105,2]
[400000416,1767005438571,-500.0,0.00016121,2]
[400000417,1767005438581,-500.0,0.00016121,2]
[400000418,1767005438590,-3464.0,0.00016122,2]
[400000419,1767005438599,-565.0,0.00016152,2]
[400000420,1767005438608,-565.0,0.00016154,2]
[400000421,1767005438617,-894.26,0.00016213,2]
[400000422,1767005438627,-1000.0,0.00016216,2]
[400000423,1767005438636,-2000.0,0.00016216,2]
[400000424,1767005438645,-250.0,0.00016334,2]
[400000425,1767005438654,-500.0,0.00016438,2]
[400000426,1767005438664,-500.0,0.00016438,2]
[400000427,1767005438673,-466.38722956,0.00016438,2]
[400000428,1767005438683,-500.0,0.00016438,2]
[400000429,1767005438692,-500.0,0.00016438,2]
[400000430,1767005438701,-500.0,0.00016438,2]
[400000431,1767005438711,-500.0,0.00016438,2]
[400000432,1767005438720,-500.0,0.00016438,2]
[400000433,1767005438729,-500.0,0.00016438,2]
[400000434,1767005438738,-500.0,0.00016438,2]
[400000435,1767005438753,-500.0,0.00016438,2]
[400000436,1767005438766,-500.0,0.00016438,2]
[400000437,1767005438775,-500.0,0.00016438,2]
[400000438,1767005438785,-500.0,0.00016438,2]
[400000439,1767005438795,-500.0,0.00016438,2]
[400000440,1767005438804,-500.0,0.00016438,2]
[400000441,1767005438813,-593.06841579,0.00016438,2]
[400000442,1767005438823,-500.0,0.00016438,2]
[400000443,1767005438833,-500.0,0.00016438,2]
[400000444,1767005438842,-3397.82824614,0.00016478,2]
[400000445,1767005438853,-595.37131296,0.00016506,2]
[400000446,1767005438865,-565.0,0.00016534,2]
[400000447,1767005438875,-150.0,0.00016546,2]
[400000448,1767005438884,-565.0,0.00016568,2]
[400000449,1767005438894,-7905.9348044,0.00016588,2]
[400000450,1767005438904,-1760.95480935,0.0001666,2]
[400000451,1767005438914,-166.63,0.00016712,2]
[400000452,1767005438923,-2500.0,0.00016764,2]
[400000453,1767005438932,-642.94,0.00016779,2]
[400000454,1767005438942,-565.0,0.0001688,2]
[400000455,1767005438952,-167.88,0.00016885,2]
[400000456,1767005438961,-3397.82824614,0.000169,2]
[400000457,1767005438971,-1756.96464342,0.000169,2]
[400000458,1767005438980,-179.69793141,0.000169,2]
[400000459,1767005438990,-377.28874825,0.000169,2]
[400000460,1767005438999,-217.0,0.00016906,2]
[400000461,1767005439009,-29219.6421484,0.00016996,2]
[400000462,1767005439018,-1109.3978619,0.00016996,2]
[400000463,1767005439029,-313.99302103,0.00016999,2]
[400000464,1767005439039,-300.0,0.00016999,2]
[400000465,1767005439048,-300.0,0.00016999,2]
[400000466,1767005439058,-2838.52869186,0.00017,2]
[400000467,1767005439073,-703.73629656,0.00017,2]
[400000468,1767005439085,-1982.08457521,0.00017,2]
[400000469,1767005439097,-925.40538066,0.00017,2]
[400000470,1767005439108,-10999.09543311,0.00017,2]
[400000471,1767005439123,-1632.3679,0.00017,2]
[400000472,1767005439134,-67617.43159549,0.00017,2]
[400000473,1767005439146,-53807.57380998,0.00017,2]
[400000474,1767005439158,-2416.06200004,0.00017,2]
[400000475,1767005439169,-964.0942,0.00017,2]
[400000481,1767005439526,-271.64303514,0.000169,2]
[400000482,1767005439584,-448.69250691,0.000169,2]
[400000483,1767005439594,-12650.89135045,0.00017,2]
[400000484,1767005439604,-494994.37151988,0.00017,2]
[400000485,1767005439795,-1889433.12030789,0.00017,2]
[400000486,1767005439806,-1920.10404047,0.00017,2]
[400000487,1767005439847,-913.53,0.00017,2]
[400000495,1767005443088,-2500.0,0.000131,2]
[400000496,1767005443098,-1995.83362556,0.00015633,2]
[400000504,1767005445517,-2297.64096379,0.00015633,2]
[400000505,1767005445571,-356.63752201,0.00015633,2]
[400000506,1767005445581,-1151.60580227,0.00016056,2]
[400000522,1767005557097,-153.40575883,0.00012998,2]
[400000523,1767005557121,-197.38456565,0.00012998,2]
[400000524,1767005557146,-524.2649574,0.00012998,2]
[400000525,1767005557175,-500.0,0.00012998,2]
[400000526,1767005557201,-500.0,0.00012998,2]
[400000527,1767005557226,-500.0,0.00012998,2]
[400000528,1767005557254,-124.94471812,0.00012998,2]
[400000530,1767005747247,-494.51040233,0.000129,2]
[400000531,1767005766900,1587.19256257,0.000129,2]
[400000532,1767005814329,500.0,0.00012897,2]
[400000534,1767005869418,-1500.0,0.00012989,2]
[400000535,1767005870459,-1500.0,0.00012989,2]
[400000536,1767005875682,870.352,0.00012899,2]
[400000546,1767005905533,1270.5,7.669e-05,2]
[400000547,1767005905930,1270.5,8.073e-05,2]
[400000548,1767005906126,1270.5,8.476e-05,2]
[400000549,1767005906316,1270.5,8.88e-05,2]
[400000551,1767005906498,971.44463277,9.284e-05,2]
[400000552,1767005906523,299.05536723,9.284e-05,2]
[400000553,1767005906699,1270.5,9.687e-05,2]